fUST/lending_fUST_20251206
["ID","MTS","AMOUNT","RATE_DAILY","PERIOD"]
[396422093,1764964272533,-10167.34,0.00016986,2]
[396422094,1764964272543,-871.12,0.00016986,2]
[396422095,1764964272553,-3602.82,0.00016986,2]
[396422096,1764964272563,-323.4343995,0.00016986,2]
[396422097,1764964272572,-690.39,0.00016986,2]
[396422098,1764964272582,-570.25,0.00016986,2]
[396422099,1764964272592,-3182.83,0.00016986,2]
[396422100,1764964272602,-500.0,0.00016986,2]
[396422101,1764964272612,-500.0,0.00016986,2]
[396422102,1764964272622,-500.0,0.00016986,2]
[396422103,1764964272631,-2410.62,0.00016986,2]
[396422104,1764964272641,-500.0,0.00016986,2]
[396422105,1764964272650,-500.0,0.00016986,2]
[396422106,1764964272660,-500.0,0.00016986,2]
[396422107,1764964272670,-2260.75,0.00016986,2]
[396422108,1764964272679,-1031.43,0.00016986,2]
[396422109,1764964272689,-500.0,0.00016986,2]
[396422110,1764964272699,-500.0,0.00016986,2]
[396422111,1764964272709,-1240.63,0.00016986,2]
[396422112,1764964272719,-500.0,0.00016986,2]
[396422113,1764964272729,-3147.39,0.00016986,2]
[396422114,1764964272740,-500.0,0.00016986,2]
[396422115,1764964272750,-535.52,0.00016986,2]
[396422116,1764964272760,-3754.05,0.00016986,2]
[396422117,1764964272769,-2393.17,0.00016986,2]
[396422118,1764964272779,-500.0,0.00016986,2]
[396422119,1764964272788,-640.85,0.00016986,2]
[396422120,1764964272797,-700.33,0.00016986,2]
[396422121,1764964272807,-2634.96,0.00016986,2]
[396422122,1764964272817,-500.0,0.00016986,2]
[396422123,1764964272826,-3889.17,0.00016986,2]
[396422124,1764964272836,-500.0,0.00016986,2]
[396422125,1764964272845,-500.0,0.00016986,2]
[396422126,1764964272855,-786.42,0.00016986,2]
[396422127,1764964272864,-500.0,0.00016986,2]
[396422128,1764964272873,-500.0,0.00016986,2]
[396422129,1764964272883,-1453.14,0.00016986,2]
[396422130,1764964272895,-500.0,0.00016986,2]
[396422131,1764964272904,-2259.44,0.00016986,2]
[396422132,1764964272914,-642.0,0.00016986,2]
[396422133,1764964272923,-508.81683072,0.00016986,2]
[396422134,1764964272933,-500.0,0.00016986,2]
[396422135,1764964272943,-500.0,0.00016986,2]
[396422136,1764964272952,-7930.82,0.00016986,2]
[396422137,1764964272962,-500.0,0.00016986,2]
[396422138,1764964272971,-3536.79,0.00016986,2]
[396422139,1764964272981,-500.0,0.0001726,2]
[396422140,1764964272991,-500.0,0.0001726,2]
[396422141,1764964273003,-500.0,0.0001726,2]
[396422142,1764964273012,-500.0,0.0001726,2]
[396422143,1764964273022,-500.0,0.0001726,2]
[396422144,1764964273031,-500.0,0.0001726,2]
[396422145,1764964273042,-500.0,0.0001726,2]
[396422146,1764964273053,-500.0,0.0001726,2]
[396422147,1764964273063,-500.0,0.0001726,2]
[396422148,1764964273075,-500.0,0.0001726,2]
[396422149,1764964273086,-500.0,0.0001726,2]
[396422150,1764964273096,-674.84,0.0001726,2]
[396422151,1764964273107,-500.0,0.0001726,2]
[396422152,1764964273117,-759.28,0.0001726,2]
[396422153,1764964273127,-500.0,0.0001726,2]
[396422154,1764964273138,-821.01,0.0001726,2]
[396422155,1764964273147,-3248.83,0.0001726,2]
[396422156,1764964273157,-500.0,0.0001726,2]
[396422157,1764964273168,-500.0,0.0001726,2]
[396422158,1764964273180,-766.62,0.0001726,2]
[396422159,1764964273190,-596.14,0.0001726,2]
[396422160,1764964273200,-677.48,0.0001726,2]
[396422161,1764964273210,-500.0,0.0001726,2]
[396422162,1764964273220,-710.03,0.0001726,2]
[396422163,1764964273230,-500.0,0.0001726,2]
[396422164,1764964273240,-500.0,0.0001726,2]
[396422165,1764964273249,-978.11,0.0001726,2]
[396422166,1764964273259,-500.0,0.0001726,2]
[396422167,1764964273269,-950.77,0.0001726,2]
[396422168,1764964273278,-2195.96,0.0001726,2]
[396422169,1764964273288,-500.0,0.0001726,2]
[396422170,1764964273298,-500.0,0.0001726,2]
[396422171,1764964273307,-831.34,0.0001726,2]
[396422172,1764964273317,-500.0,0.0001726,2]
[396422173,1764964273327,-609.85,0.0001726,2]
[396422174,1764964273337,-500.0,0.0001726,2]
[396422175,1764964273347,-1164.68,0.0001726,2]
[396422176,1764964273357,-500.0,0.0001726,2]
[396422177,1764964273367,-500.0,0.0001726,2]
[396422178,1764964273377,-768.78,0.0001726,2]
[396422179,1764964273387,-609.15,0.0001726,2]
[396422180,1764964273397,-500.0,0.0001726,2]
[396422181,1764964273407,-1330.04,0.0001726,2]
[396422182,1764964273418,-913.97,0.0001726,2]
[396422183,1764964273427,-291.19826547,0.0001726,2]
[396422184,1764964273437,-500.0,0.0001726,2]
[396422185,1764964273448,-500.0,0.0001726,2]
[396422186,1764964273458,-500.0,0.0001726,2]
[396422187,1764964273467,-500.0,0.0001726,2]
[396422188,1764964273477,-500.0,0.0001726,2]
[396422189,1764964273487,-738.1,0.0001726,2]
[396422190,1764964273496,-500.0,0.0001726,2]
[396422191,1764964273506,-1071.4,0.0001726,2]
[396422192,1764964273516,-1543.99,0.0001726,2]
[396422193,1764964273526,-500.0,0.0001726,2]
[396422194,1764964273536,-1862.41,0.0001726,2]
[396422195,1764964273545,-500.0,0.0001726,2]
[396422196,1764964273555,-500.0,0.0001726,2]
[396422197,1764964273564,-500.0,0.0001726,2]
[396422198,1764964273575,-939.06,0.0001726,2]
[396422199,1764964273584,-1733.31,0.0001726,2]
[396422200,1764964273594,-2719.16,0.0001726,2]
[396422201,1764964273604,-826.15,0.0001726,2]
[396422202,1764964273614,-500.0,0.0001726,2]
[396422203,1764964273624,-500.0,0.0001726,2]
[396422204,1764964273633,-500.0,0.0001726,2]
[396422205,1764964273644,-1078.39,0.0001726,2]
[396422206,1764964273658,-708.58,0.0001726,2]
[396422207,1764964273678,-1771.78,0.0001726,2]
[396422208,1764964273688,-500.0,0.0001726,2]
[396422209,1764964273699,-500.0,0.0001726,2]
[396422210,1764964273709,-500.0,0.0001726,2]
[396422211,1764964273719,-500.0,0.0001726,2]
[396422212,1764964273729,-500.0,0.0001726,2]
[396422213,1764964273740,-500.0,0.0001726,2]
[396422214,1764964273749,-500.0,0.0001726,2]
[396422215,1764964273759,-565.85375046,0.0001726,2]
[396422216,1764964273769,-672.42,0.0001726,2]
[396422217,1764964273779,-874.07,0.0001726,2]
[396422218,1764964273789,-500.0,0.0001726,2]
[396422219,1764964273799,-500.0,0.0001726,2]
[396422220,1764964273809,-611.92,0.0001726,2]
[396422221,1764964273818,-2821.54,0.0001726,2]
[396422222,1764964273828,-500.0,0.0001726,2]
[396422223,1764964273838,-500.0,0.0001726,2]
[396422224,1764964273847,-500.0,0.0001726,2]
[396422225,1764964273857,-500.0,0.0001726,2]
[396422226,1764964273866,-500.0,0.0001726,2]
[396422227,1764964273876,-636.11,0.0001726,2]
[396422228,1764964273886,-971.51,0.0001726,2]
[396422229,1764964274171,-906.08,0.0001726,2]
[396422230,1764964274180,-500.0,0.0001726,2]
[396422231,1764964274190,-571.85,0.0001726,2]
[396422232,1764964274200,-500.0,0.0001726,2]
[396422233,1764964274210,-584.3087538,0.0001726,2]
[396422234,1764964274220,-500.0,0.0001726,2]
[396422235,1764964274229,-500.0,0.0001726,2]
[396422236,1764964274240,-500.0,0.0001726,2]
[396422237,1764964274249,-1069.86,0.0001726,2]
[396422238,1764964274258,-599.02977784,0.0001726,2]
[396422239,1764964274267,-500.0,0.0001726,2]
[396422240,1764964274276,-461.34943413,0.0001726,2]
[396422241,1764964274286,-1462.76,0.0001726,2]
[396422242,1764964274295,-502.82,0.0001726,2]
[396422243,1764964274305,-500.0,0.0001726,2]
[396422244,1764964274314,-500.0,0.0001726,2]
[396422245,1764964274323,-500.0,0.0001726,2]
[396422246,1764964274332,-2534.3,0.0001726,2]
[396422247,1764964274342,-500.0,0.0001726,2]
[396422248,1764964274352,-500.0,0.0001726,2]
[396422249,1764964274361,-500.0,0.0001726,2]
[396422250,1764964274371,-500.0,0.0001726,2]
[396422251,1764964274380,-500.0,0.0001726,2]
[396422252,1764964274390,-647.83,0.0001726,2]
[396422253,1764964274399,-500.0,0.0001726,2]
[396422254,1764964274409,-1092.74,0.0001726,2]
[396422255,1764964274418,-500.0,0.0001726,2]
[396422256,1764964274428,-500.0,0.0001726,2]
[396422257,1764964274438,-500.0,0.0001726,2]
[396422258,1764964274450,-500.0,0.0001726,2]
[396422259,1764964274460,-1405.79,0.0001726,2]
[396422260,1764964274471,-1078.91,0.0001726,2]
[396422261,1764964274480,-500.0,0.0001726,2]
[396422262,1764964274492,-1311.8,0.0001726,2]
[396422263,1764964274502,-500.0,0.0001726,2]
[396422264,1764964274512,-1734.17,0.0001726,2]
[396422265,1764964274522,-698.12,0.0001726,2]
[396422266,1764964274531,-1866.07,0.0001726,2]
[396422267,1764964274541,-500.0,0.0001726,2]
[396422268,1764964274551,-500.0,0.0001726,2]
[396422269,1764964274562,-500.0,0.0001726,2]
[396422270,1764964274571,-500.0,0.0001726,2]
[396422271,1764964274580,-311.86751479,0.0001726,2]
[396422272,1764964274591,-1534.72,0.0001726,2]
[396422273,1764964274600,-524.96,0.0001726,2]
[396422274,1764964274610,-530.81612487,0.0001726,2]
[396422275,1764964274619,-500.0,0.0001726,2]
[396422276,1764964274628,-500.0,0.0001726,2]
[396422277,1764964274638,-2060.56,0.0001726,2]
[396422278,1764964274647,-500.0,0.0001726,2]
[396422279,1764964274656,-500.0,0.0001726,2]
[396422280,1764964274666,-673.73,0.0001726,2]
[396422281,1764964274675,-701.23,0.0001726,2]
[396422282,1764964274685,-1698.62,0.0001726,2]
[396422283,1764964274695,-658.93,0.0001726,2]
[396422284,1764964274705,-500.0,0.0001726,2]
[396422285,1764964274715,-742.38,0.0001726,2]
[396422286,1764964274724,-747.63,0.0001726,2]
[396422287,1764964274734,-667.01,0.0001726,2]
[396422288,1764964274743,-500.0,0.0001726,2]
[396422289,1764964274752,-500.0,0.0001726,2]
[396422290,1764964274762,-500.0,0.0001726,2]
[396422291,1764964274772,-1151.69,0.0001726,2]
[396422292,1764964274782,-721.72,0.0001726,2]
[396422293,1764964274791,-500.0,0.0001726,2]
[396422294,1764964274800,-991.55,0.0001726,2]
[396422295,1764964274810,-500.0,0.0001726,2]
[396422296,1764964274819,-500.0,0.0001726,2]
[396422297,1764964274829,-500.0,0.0001726,2]
[396422298,1764964274839,-500.0,0.0001726,2]
[396422299,1764964274848,-596.6,0.0001726,2]
[396422300,1764964274858,-1963.89,0.0001726,2]
[396422301,1764964274870,-2056.09,0.0001726,2]
[396422302,1764964274881,-500.0,0.0001726,2]
[396422303,1764964274891,-500.0,0.0001726,2]
[396422304,1764964274900,-1932.03,0.0001726,2]
[396422305,1764964274909,-1925.2,0.0001726,2]
[396422306,1764964274919,-694.04,0.0001726,2]
[396422307,1764964274929,-1279.51,0.0001726,2]
[396422308,1764964274938,-500.0,0.0001726,2]
[396422309,1764964274949,-552.82,0.0001726,2]
[396422310,1764964274958,-1066.32,0.0001726,2]
[396422311,1764964274968,-500.0,0.0001726,2]
[396422312,1764964274977,-1282.6,0.0001726,2]
[396422313,1764964274986,-500.0,0.0001726,2]
[396422314,1764964274997,-1077.48,0.0001726,2]
[396422315,1764964275008,-500.0,0.0001726,2]
[396422316,1764964275018,-500.0,0.0001726,2]
[396422317,1764964275028,-500.0,0.0001726,2]
[396422318,1764964275039,-500.0,0.0001726,2]
[396422319,1764964275049,-1056.93,0.0001726,2]
[396422320,1764964275058,-798.61,0.0001726,2]
[396422321,1764964275068,-1405.18,0.0001726,2]
[396422322,1764964275078,-500.0,0.0001726,2]
[396422323,1764964275089,-500.0,0.0001726,2]
[396422324,1764964275098,-1114.7,0.0001726,2]
[396422325,1764964275108,-867.37,0.0001726,2]
[396422326,1764964275118,-500.0,0.0001726,2]
[396422327,1764964275128,-773.03,0.0001726,2]
[396422328,1764964275139,-2394.89,0.0001726,2]
[396422329,1764964275149,-500.4,0.0001726,2]
[396422330,1764964275159,-500.0,0.0001726,2]
[396422331,1764964275169,-1140.55,0.0001726,2]
[396422332,1764964275179,-153.41810865,0.0001726,2]
[396422333,1764964275188,-507.01,0.0001726,2]
[396422334,1764964275198,-500.0,0.0001726,2]
[396422335,1764964275207,-500.0,0.0001726,2]
[396422336,1764964275217,-753.55,0.0001726,2]
[396422337,1764964275227,-500.0,0.0001726,2]
[396422338,1764964275237,-500.0,0.0001726,2]
[396422339,1764964275246,-500.0,0.0001726,2]
[396422340,1764964275256,-1160.45,0.0001726,2]
[396422341,1764964275266,-500.0,0.0001726,2]
[396422342,1764964275276,-801.76,0.0001726,2]
[396422343,1764964275285,-542.43,0.0001726,2]
[396422344,1764964275294,-2713.85,0.0001726,2]
[396422345,1764964275303,-500.0,0.0001726,2]
[396422346,1764964275311,-500.0,0.0001726,2]
[396422347,1764964275321,-914.46,0.0001726,2]
[396422348,1764964275330,-500.0,0.0001726,2]
[396422349,1764964275340,-500.0,0.0001726,2]
[396422350,1764964275349,-4419.03,0.0001726,2]
[396422351,1764964275358,-500.0,0.0001726,2]
[396422352,1764964275367,-526.41,0.0001726,2]
[396422353,1764964275376,-588.91,0.0001726,2]
[396422354,1764964275385,-981.61,0.0001726,2]
[396422355,1764964275394,-562.03,0.0001726,2]
[396422356,1764964275403,-1146.46,0.0001726,2]
[396422357,1764964275412,-500.0,0.0001726,2]
[396422358,1764964275422,-1195.63,0.0001726,2]
[396422359,1764964275431,-500.0,0.0001726,2]
[396422360,1764964275440,-500.0,0.0001726,2]
[396422361,1764964275451,-500.0,0.0001726,2]
[396422362,1764964275460,-2202.96,0.0001726,2]
[396422363,1764964275469,-500.0,0.0001726,2]
[396422364,1764964275479,-769.64,0.0001726,2]
[396422365,1764964275488,-549.40179436,0.0001726,2]
[396422366,1764964275499,-2092.31,0.0001726,2]
[396422367,1764964275508,-813.86,0.0001726,2]
[396422368,1764964275519,-530.06,0.0001726,2]
[396422369,1764964275528,-500.0,0.0001726,2]
[396422370,1764964275538,-442.0801975,0.0001726,2]
[396422371,1764964275547,-500.0,0.0001726,2]
[396422372,1764964275557,-708.5,0.0001726,2]
[396422373,1764964275566,-500.0,0.0001726,2]
[396422374,1764964275575,-500.0,0.0001726,2]
[396422375,1764964275585,-528.45,0.0001726,2]
[396422376,1764964275595,-500.0,0.0001726,2]
[396422377,1764964275604,-532.79,0.0001726,2]
[396422378,1764964275614,-500.0,0.0001726,2]
[396422379,1764964275623,-1131.46,0.0001726,2]
[396422380,1764964275632,-1131.9,0.0001726,2]
[396422381,1764964275642,-500.0,0.0001726,2]
[396422382,1764964275651,-500.0,0.0001726,2]
[396422383,1764964275661,-500.0,0.0001726,2]
[396422384,1764964275670,-500.0,0.0001726,2]
[396422385,1764964275679,-608.86,0.0001726,2]
[396422386,1764964275688,-880.35,0.0001726,2]
[396422387,1764964275698,-784.6,0.0001726,2]
[396422388,1764964275707,-500.0,0.0001726,2]
[396422389,1764964275717,-589.81,0.0001726,2]
[396422390,1764964275726,-500.0,0.0001726,2]
[396422391,1764964275736,-500.0,0.0001726,2]
[396422392,1764964275745,-500.0,0.0001726,2]
[396422393,1764964275754,-537.52,0.0001726,2]
[396422394,1764964275764,-1014.04,0.0001726,2]
[396422395,1764964275773,-2220.46,0.0001726,2]
[396422396,1764964275783,-2190.66,0.0001726,2]
[396422397,1764964275792,-531.42042974,0.0001726,2]
[396422398,1764964275802,-500.0,0.0001726,2]
[396422399,1764964275811,-1158.75,0.0001726,2]
[396422400,1764964275820,-500.0,0.0001726,2]
[396422401,1764964275829,-500.0,0.0001726,2]
[396422402,1764964275839,-681.06,0.0001726,2]
[396422403,1764964275848,-500.0,0.0001726,2]
[396422404,1764964275857,-2115.78,0.0001726,2]
[396422405,1764964275867,-500.0,0.0001726,2]
[396422406,1764964275876,-766.35,0.0001726,2]
[396422407,1764964275885,-966.12,0.0001726,2]
[396422408,1764964275894,-914.28,0.0001726,2]
[396422409,1764964275903,-982.55,0.0001726,2]
[396422410,1764964275913,-500.0,0.0001726,2]
[396422411,1764964275922,-500.0,0.0001726,2]
[396422412,1764964275932,-500.0,0.0001726,2]
[396422413,1764964275941,-500.0,0.0001726,2]
[396422414,1764964275952,-500.0,0.0001726,2]
[396422415,1764964275961,-936.35,0.0001726,2]
[396422416,1764964275971,-500.0,0.0001726,2]
[396422417,1764964275982,-500.0,0.0001726,2]
[396422418,1764964275992,-500.0,0.0001726,2]
[396422419,1764964276005,-500.0,0.0001726,2]
[396422420,1764964276015,-500.0,0.0001726,2]
[396422421,1764964276024,-749.63,0.0001726,2]
[396422422,1764964276035,-1641.15,0.0001726,2]
[396422423,1764964276044,-1076.77,0.0001726,2]
[396422424,1764964276054,-500.0,0.0001726,2]
[396422425,1764964276063,-500.0,0.0001726,2]
[396422426,1764964276072,-500.0,0.0001726,2]
[396422427,1764964276083,-500.0,0.0001726,2]
[396422428,1764964276093,-603.68,0.0001726,2]
[396422429,1764964276105,-500.0,0.0001726,2]
[396422430,1764964276114,-698.96,0.0001726,2]
[396422431,1764964276125,-500.0,0.0001726,2]
[396422432,1764964276135,-1666.18,0.0001726,2]
[396422433,1764964276145,-671.97,0.0001726,2]
[396422434,1764964276154,-502.19,0.0001726,2]
[396422435,1764964276165,-2087.17,0.0001726,2]
[396422436,1764964276174,-500.0,0.0001726,2]
[396422437,1764964276184,-500.0,0.0001726,2]
[396422438,1764964276194,-500.0,0.0001726,2]
[396422439,1764964276204,-516.65,0.0001726,2]
[396422440,1764964276214,-500.0,0.0001726,2]
[396422441,1764964276223,-500.0,0.0001726,2]
[396422442,1764964276232,-2037.83,0.0001726,2]
[396422443,1764964276242,-501.13,0.0001726,2]
[396422444,1764964276251,-500.0,0.0001726,2]
[396422445,1764964276261,-571.62,0.0001726,2]
[396422446,1764964276271,-500.0,0.0001726,2]
[396422447,1764964276281,-1758.23,0.0001726,2]
[396422448,1764964276290,-4101.23,0.0001726,2]
[396422449,1764964276299,-1128.95,0.0001726,2]
[396422450,1764964276309,-500.0,0.0001726,2]
[396422451,1764964276318,-735.18,0.0001726,2]
[396422452,1764964276330,-2336.08,0.0001726,2]
[396422453,1764964276339,-500.0,0.0001726,2]
[396422454,1764964276348,-656.91,0.0001726,2]
[396422455,1764964276357,-500.0,0.0001726,2]
[396422456,1764964276367,-942.22,0.0001726,2]
[396422457,1764964276376,-606.67,0.0001726,2]
[396422458,1764964276386,-500.0,0.0001726,2]
[396422459,1764964276395,-308.76231958,0.0001726,2]
[396422460,1764964276405,-866.26,0.0001726,2]
[396422461,1764964276414,-500.0,0.0001726,2]
[396422462,1764964276423,-541.60493868,0.0001726,2]
[396422463,1764964276433,-500.0,0.0001726,2]
[396422464,1764964276442,-500.13,0.0001726,2]
[396422465,1764964276451,-500.0,0.0001726,2]
[396422466,1764964276460,-500.0,0.0001726,2]
[396422467,1764964276550,-500.0,0.0001726,2]
[396422468,1764964276559,-500.0,0.0001726,2]
[396422469,1764964276568,-500.0,0.0001726,2]
[396422470,1764964276577,-748.38,0.0001726,2]
[396422471,1764964276586,-784.77,0.0001726,2]
[396422472,1764964276595,-500.0,0.0001726,2]
[396422473,1764964276604,-3000.65,0.0001726,2]
[396422474,1764964276614,-525.35,0.0001726,2]
[396422475,1764964276623,-507.51607145,0.0001726,2]
[396422476,1764964276632,-500.0,0.0001726,2]
[396422477,1764964276641,-632.24,0.0001726,2]
[396422478,1764964276650,-500.0,0.0001726,2]
[396422479,1764964276660,-734.19,0.0001726,2]
[396422480,1764964276670,-500.0,0.0001726,2]
[396422481,1764964276680,-500.0,0.0001726,2]
[396422482,1764964276689,-500.0,0.0001726,2]
[396422483,1764964276698,-1121.55,0.0001726,2]
[396422484,1764964276707,-4195.91,0.0001726,2]
[396422485,1764964276717,-500.0,0.0001726,2]
[396422486,1764964276726,-1169.87,0.0001726,2]
[396422487,1764964276735,-500.0,0.0001726,2]
[396422488,1764964276745,-500.0,0.0001726,2]
[396422489,1764964276754,-500.0,0.0001726,2]
[396422490,1764964276763,-1721.78,0.0001726,2]
[396422491,1764964276772,-797.93,0.0001726,2]
[396422492,1764964276781,-500.0,0.0001726,2]
[396422493,1764964276791,-500.0,0.0001726,2]
[396422494,1764964276802,-3352.24,0.0001726,2]
[396422495,1764964276812,-701.25,0.0001726,2]
[396422496,1764964276822,-500.0,0.0001726,2]
[396422497,1764964276834,-1865.02,0.0001726,2]
[396422498,1764964276844,-500.0,0.0001726,2]
[396422499,1764964276854,-573.69460379,0.0001726,2]
[396422500,1764964276863,-547.35,0.0001726,2]
[396422501,1764964276874,-1140.86,0.0001726,2]
[396422502,1764964276883,-1061.3,0.0001726,2]
[396422503,1764964276893,-500.0,0.0001726,2]
[396422504,1764964276905,-581.3,0.0001726,2]
[396422505,1764964276914,-561.53,0.0001726,2]
[396422506,1764964276923,-1248.52,0.0001726,2]
[396422507,1764964276932,-500.0,0.0001726,2]
[396422508,1764964276941,-500.0,0.0001726,2]
[396422509,1764964276953,-565.64,0.0001726,2]
[396422510,1764964276962,-500.0,0.0001726,2]
[396422511,1764964276972,-1569.73,0.0001726,2]
[396422512,1764964276981,-1818.55,0.0001726,2]
[396422513,1764964276990,-522.2,0.0001726,2]
[396422514,1764964277002,-875.06,0.0001726,2]
[396422515,1764964277011,-500.0,0.0001726,2]
[396422516,1764964277021,-500.0,0.0001726,2]
[396422517,1764964277030,-500.0,0.0001726,2]
[396422518,1764964277039,-1114.54,0.0001726,2]
[396422519,1764964277048,-500.0,0.0001726,2]
[396422520,1764964277057,-500.0,0.0001726,2]
[396422521,1764964277066,-526.74279144,0.0001726,2]
[396422522,1764964277075,-500.0,0.0001726,2]
[396422523,1764964277086,-1202.31,0.0001726,2]
[396422524,1764964277095,-500.0,0.0001726,2]
[396422525,1764964277104,-1019.58,0.0001726,2]
[396422526,1764964277113,-1283.59,0.0001726,2]
[396422527,1764964277122,-500.0,0.0001726,2]
[396422528,1764964277132,-500.0,0.0001726,2]
[396422529,1764964277141,-1200.75,0.0001726,2]
[396422530,1764964277150,-500.0,0.0001726,2]
[396422531,1764964277160,-506.37,0.0001726,2]
[396422532,1764964277169,-500.0,0.0001726,2]
[396422533,1764964277178,-500.0,0.0001726,2]
[396422534,1764964277187,-1231.58,0.0001726,2]
[396422535,1764964277196,-506.68,0.0001726,2]
[396422536,1764964277205,-654.39,0.0001726,2]
[396422537,1764964277214,-520.06232243,0.0001726,2]
[396422538,1764964277223,-500.0,0.0001726,2]
[396422539,1764964277233,-500.0,0.0001726,2]
[396422540,1764964277242,-500.0,0.0001726,2]
[396422541,1764964277251,-1113.91,0.0001726,2]
[396422542,1764964277260,-663.62,0.0001726,2]
[396422543,1764964277269,-753.47,0.0001726,2]
[396422544,1764964277278,-1445.18,0.0001726,2]
[396422545,1764964277287,-500.0,0.0001726,2]
[396422546,1764964277296,-500.0,0.0001726,2]
[396422547,1764964277306,-500.0,0.0001726,2]
[396422548,1764964277315,-500.0,0.0001726,2]
[396422549,1764964277324,-500.0,0.0001726,2]
[396422550,1764964277334,-780.5,0.0001726,2]
[396422551,1764964277343,-889.08,0.0001726,2]
[396422552,1764964277352,-500.0,0.0001726,2]
[396422553,1764964277361,-2835.2,0.0001726,2]
[396422554,1764964277370,-500.0,0.0001726,2]
[396422555,1764964277379,-500.0,0.0001726,2]
[396422556,1764964277388,-500.0,0.0001726,2]
[396422557,1764964277397,-500.0,0.0001726,2]
[396422558,1764964277406,-1729.46,0.0001726,2]
[396422559,1764964277415,-500.0,0.0001726,2]
[396422560,1764964277423,-1979.46,0.0001726,2]
[396422561,1764964277432,-575.86,0.0001726,2]
[396422562,1764964277441,-500.0,0.0001726,2]
[396422563,1764964277451,-1316.03,0.0001726,2]
[396422564,1764964277460,-1835.34,0.0001726,2]
[396422565,1764964277469,-500.0,0.0001726,2]
[396422566,1764964277478,-908.87,0.0001726,2]
[396422567,1764964277488,-653.14,0.0001726,2]
[396422568,1764964277497,-500.0,0.0001726,2]
[396422569,1764964277506,-557.4,0.0001726,2]
[396422570,1764964277515,-978.78,0.0001726,2]
[396422571,1764964277524,-500.0,0.0001726,2]
[396422572,1764964277533,-500.0,0.0001726,2]
[396422573,1764964277542,-1274.81,0.0001726,2]
[396422574,1764964277551,-500.0,0.0001726,2]
[396422575,1764964277561,-500.0,0.0001726,2]
[396422576,1764964277570,-500.0,0.0001726,2]
[396422577,1764964277579,-1825.48,0.0001726,2]
[396422578,1764964277588,-1459.61,0.0001726,2]
[396422579,1764964277597,-500.0,0.0001726,2]
[396422580,1764964277607,-500.0,0.0001726,2]
[396422581,1764964277617,-1362.88,0.0001726,2]
[396422582,1764964277626,-2330.6,0.0001726,2]
[396422583,1764964277636,-2129.96,0.0001726,2]
[396422584,1764964277646,-500.0,0.0001726,2]
[396422585,1764964277655,-500.0,0.0001726,2]
[396422586,1764964277664,-500.0,0.0001726,2]
[396422587,1764964277673,-664.95,0.0001726,2]
[396422588,1764964277682,-1189.18,0.0001726,2]
[396422589,1764964277692,-500.0,0.0001726,2]
[396422590,1764964277702,-500.0,0.0001726,2]
[396422591,1764964277711,-989.95,0.0001726,2]
[396422592,1764964277720,-1334.27,0.0001726,2]